bitfinex/quotes_SOLUSD_20241113
["timestamp","ask_amount","ask_price","bid_price","bid_amount"]
[1731516602539,0.12549,216.74,216.51,0.12549]
[1731516602927,6.46142125,216.8,216.54,0.12549]
[1731516603119,6.56142125,216.84,216.54,0.12549]
[1731516603320,44.16691655,216.79,216.54,0.12549]
[1731516607445,43.776884,216.51,216.33,11.3367]
[1731516608422,37.04833215,216.5,216.33,11.3367]
[1731516608627,23.776884,216.49,216.33,11.3367]
[1731516608824,23.776884,216.45,216.33,11.3367]
[1731516609037,23.776884,216.43,216.33,11.3367]
[1731516610445,23.776884,216.39,216.33,11.3367]
[1731516611328,0.2,216.62,216.33,11.3367]
[1731516611640,37.04833215,216.58,216.33,11.3367]
[1731516611942,37.04833215,216.58,216.34,29.77419]
[1731516612343,37.04833215,216.63,216.37,0.22549]
[1731516612652,37.04833215,216.59,216.38,12.0882]
[1731516613926,23.776884,216.58,216.38,12.0882]
[1731516614123,5.60079738,216.64,216.39,0.12549]
[1731516614445,37.04833215,216.58,216.38,12.0882]
[1731516614645,37.04833215,216.56,216.38,12.0882]
[1731516615027,37.04833215,216.58,216.38,12.0882]
[1731516615344,23.776884,216.57,216.38,12.0882]
[1731516615645,37.04833215,216.54,216.38,12.0882]
[1731516615837,0.1,216.6,216.38,12.0882]
[1731516615838,23.776884,216.51,216.38,12.0882]
[1731516616042,23.776884,216.49,216.38,12.0882]
[1731516616222,23.776884,216.47,216.38,12.0882]
[1731516617343,20.0,216.46,216.38,12.0882]
[1731516617530,20.0,216.51,216.38,12.0882]
[1731516617734,37.04833215,216.58,216.38,12.0882]
[1731516617926,37.04833215,216.62,216.39,0.12549]
[1731516618128,37.04833215,216.65,216.39,0.22549]
[1731516618453,37.04833215,216.67,216.44,0.12549]
[1731516618629,37.04833215,216.65,216.44,0.12549]
[1731516618825,37.04833215,216.65,216.43,30.7205]
[1731516619027,37.04833215,216.69,216.45,0.12549]
[1731516619230,37.04833215,216.67,216.44,12.3089]
[1731516619442,4.6143,216.72,216.44,12.3089]
[1731516619443,37.04833215,216.69,216.45,0.12549]
[1731516619643,10.24356825,216.72,216.45,0.12549]
[1731516619644,37.04833215,216.65,216.45,0.12549]
[1731516620041,37.04833215,216.7,216.44,12.3089]
[1731516620042,37.04833215,216.63,216.44,12.3089]
[1731516620247,0.1,216.69,216.44,12.3089]
[1731516620248,20.0,216.6,216.44,12.3089]
[1731516620447,37.04833215,216.59,216.44,12.3089]
[1731516620646,23.776884,216.55,216.44,12.3089]
[1731516621228,20.0,216.6,216.44,12.3089]
[1731516621646,37.04833215,216.65,216.45,0.12549]
[1731516621878,37.04833215,216.68,216.44,12.3089]
[1731516622058,37.04833215,216.64,216.44,12.3089]
[1731516622230,37.04833215,216.66,216.44,12.3089]
[1731516622432,37.04833215,216.66,216.45,0.12549]
[1731516622753,37.04833215,216.64,216.44,12.3089]
[1731516623252,20.0,216.63,216.45,0.12549]
[1731516623454,20.0,216.67,216.45,0.12549]
[1731516623754,37.04833215,216.7,216.45,0.12549]
[1731516623933,37.04833215,216.68,216.45,0.12549]
[1731516624848,37.04833215,216.64,216.44,12.3089]
[1731516625043,43.776884,216.63,216.45,0.12549]
[1731516625250,42.77141906,216.73,216.48,0.12549]
[1731516625435,42.83043402,216.75,216.5,0.12549]
[1731516625639,37.04833215,216.81,216.57,0.12549]
[1731516625841,37.04833215,216.79,216.57,0.12549]
[1731516626243,37.04833215,216.81,216.57,0.12549]
[1731516626730,37.04833215,216.81,216.58,0.12549]
[1731516627534,20.0,216.8,216.58,0.12549]
[1731516628639,24.1496537,216.77,216.58,0.12549]
[1731516629379,33.68638055,216.89,216.53,5.78933229]
[1731516629380,38.01726215,216.9,216.65,0.12549]
[1731516629556,5.57943,216.9,216.66,10.63]
[1731516629736,37.04833215,216.88,216.66,10.63]
[1731516630050,49.73779762,216.9,216.67,0.12549]
[1731516630262,0.96893,216.9,216.67,0.22549]
[1731516630755,0.96893,216.9,216.67,0.12549]
[1731516630944,0.96893,216.9,216.67,0.22549]
[1731516631253,42.62766215,216.9,216.66,10.63]
[1731516631461,37.04833215,216.88,216.66,10.63]
[1731516631640,20.0,216.87,216.66,10.63]
[1731516632050,43.776884,216.85,216.66,10.63]
[1731516634556,37.04833215,216.82,216.66,10.63]
[1731516634771,20.0,216.76,216.66,10.63]
[1731516634937,23.776884,216.73,216.66,10.63]
[1731516635139,23.776884,216.71,216.66,10.63]
[1731516635947,23.776884,216.69,216.66,10.63]
[1731516637145,23.776884,216.75,216.66,10.63]
[1731516637348,20.0,216.76,216.66,10.63]
[1731516637950,20.0,216.79,216.66,10.63]
[1731516638147,37.04833215,216.83,216.66,10.63]
[1731516638680,37.04833215,216.85,216.66,10.63]
[1731516638972,37.04833215,216.81,216.66,10.63]
[1731516639343,37.04833215,216.83,216.66,10.63]
[1731516639561,37.04833215,216.85,216.66,10.63]
[1731516639863,4.6111,216.87,216.66,10.63]
[1731516639864,41.65943215,216.87,216.66,10.63]
[1731516640050,41.65943215,216.87,216.67,27.1071]
[1731516640363,37.04833215,216.87,216.67,27.1071]
[1731516640541,6.68500955,216.9,216.68,0.12549]
[1731516641247,0.96893,216.9,216.7,0.12549]
[1731516641550,0.96893,216.9,216.72,0.12549]
[1731516642144,0.96893,216.9,216.71,0.12549]
[1731516642339,0.96893,216.9,216.74,0.1]
[1731516642559,0.96893,216.9,216.75,11.1671]
[1731516644861,23.776884,216.89,216.75,11.1671]
[1731516646155,0.96893,216.9,216.75,11.1671]
[1731516647854,23.776884,216.89,216.75,11.1671]
[1731516649082,0.96893,216.9,216.75,11.1671]
[1731516649763,0.96893,216.9,216.76,0.12549]
[1731516650068,0.96893,216.9,216.77,11.0592]
[1731516650374,0.96893,216.9,216.78,0.12549]
[1731516652556,43.776884,216.98,216.79,11.3054]
[1731516653571,43.776884,216.95,216.79,11.3054]
[1731516654486,43.776884,216.93,216.79,11.3054]
[1731516654648,23.776884,216.93,216.79,11.3054]
[1731516655351,23.776884,216.94,216.79,11.3054]
[1731516656878,20.0,216.91,216.79,11.3054]
[1731516657071,23.776884,216.9,216.79,11.3054]
[1731516657255,43.776884,216.88,216.79,11.3054]
[1731516658160,48.387784,216.88,216.79,11.3054]
[1731516658474,43.776884,216.88,216.79,11.3054]
[1731516658672,23.776884,216.92,216.79,11.3054]
[1731516659173,20.0,216.91,216.79,11.3054]
[1731516659398,22.39879466,216.95,216.79,11.3054]
[1731516659582,4.6092,216.96,216.79,11.3054]
[1731516659959,22.39879466,216.93,216.79,11.3054]
[1731516660371,23.776884,216.92,216.79,11.3054]
[1731516660684,22.39879466,216.95,216.79,11.3054]
[1731516660975,20.0,216.95,216.79,11.3054]
[1731516661282,22.39879466,216.93,216.79,11.3054]
[1731516661462,20.0,216.92,216.79,11.3054]
[1731516661873,23.776884,216.91,216.79,11.3054]
[1731516662275,23.776884,216.89,216.79,11.3054]
[1731516662489,23.776884,216.87,216.79,11.3054]
[1731516663200,22.39879466,216.95,216.79,11.3054]
[1731516663493,20.0,216.94,216.79,11.3054]
[1731516663670,22.39879466,216.87,216.79,11.3054]
[1731516663984,20.0,216.86,216.79,11.3054]
[1731516664162,22.39879466,216.83,216.79,11.3054]
[1731516664362,20.0,216.82,216.79,11.3054]
[1731516664698,20.0,216.94,216.79,11.3054]
[1731516664863,7.44383113,216.96,216.79,11.3054]
[1731516664864,29.84262579,216.96,216.79,11.3054]
[1731516665065,22.39879466,216.96,216.79,11.3054]
[1731516665271,22.39879466,216.94,216.79,11.3054]
[1731516666182,22.39879466,216.9,216.79,11.3054]
[1731516666678,23.776884,216.89,216.79,11.3054]
[1731516667090,0.4453287,216.99,216.79,11.3054]
[1731516667389,22.39879466,216.98,216.79,11.3054]
[1731516667758,27.00809466,216.96,216.79,11.3054]
[1731516668180,22.39879466,216.92,216.79,11.3054]
[1731516668482,22.39879466,216.9,216.79,11.3054]
[1731516668794,43.776884,216.91,216.79,11.3054]
[1731516669097,43.776884,216.85,216.79,11.3054]
[1731516669573,23.776884,216.83,216.79,11.3054]
[1731516669769,22.39879466,216.92,216.79,11.3054]
[1731516669770,4.6087,216.98,216.79,11.3054]
[1731516670084,23.776884,216.95,216.79,11.3054]
[1731516670463,22.39879466,216.94,216.79,11.3054]
[1731516670679,10.85456621,216.99,216.79,11.3054]
[1731516670680,22.39879466,216.98,216.79,11.3054]
[1731516671475,22.39879466,216.96,216.79,11.3054]
[1731516671886,22.39879466,216.94,216.79,11.3054]
[1731516672092,23.776884,216.93,216.79,11.3054]
[1731516672595,23.776884,216.95,216.79,11.3054]
[1731516672809,20.0,216.94,216.79,11.3054]
[1731516673093,23.776884,216.93,216.79,11.3054]
[1731516673303,20.0,216.97,216.79,11.3054]
[1731516673476,7.20088564,217.01,216.81,26.5586]
[1731516673677,22.39879466,217.02,216.81,26.5586]
[1731516674479,27.00669466,217.02,216.81,26.5586]
[1731516674701,22.39879466,217.0,216.81,26.5586]
[1731516674898,42.39879466,216.98,216.81,26.5586]
[1731516675081,23.776884,216.97,216.81,26.5586]
[1731516675285,20.0,216.96,216.81,26.5586]
[1731516675486,20.0,216.94,216.81,26.5586]
[1731516675692,23.776884,216.93,216.81,26.5586]
[1731516675898,22.39879466,216.9,216.81,26.5586]
[1731516676107,23.776884,216.88,216.81,26.5586]
[1731516676879,20.0,216.87,216.81,26.5586]
[1731516677084,23.776884,216.84,216.79,11.3054]
[1731516677602,23.776884,216.86,216.79,11.3054]
[1731516677800,20.0,216.83,216.79,11.3054]
[1731516678003,23.776884,216.82,216.79,11.3054]
[1731516678183,4.6099,216.92,216.79,11.3054]
[1731516678384,43.776884,216.91,216.79,11.3054]
[1731516679906,23.776884,216.91,216.79,11.3054]
[1731516680086,22.39879466,216.98,216.79,11.3054]
[1731516680486,0.4453287,216.99,216.79,11.3054]
[1731516680701,0.4453287,216.99,216.8,0.12549]
[1731516681212,0.4453287,216.99,216.83,0.12549]
[1731516681400,0.4453287,216.99,216.84,11.3289]
[1731516683313,0.4453287,216.99,216.85,0.12549]
[1731516683891,5.61181278,217.08,216.87,0.12549]
[1731516684103,5.61181278,217.08,216.91,0.22549]
[1731516684296,0.1,217.21,216.92,10.9069]
[1731516684601,22.39879466,217.17,216.93,0.12549]
[1731516684907,22.39879466,217.19,216.95,0.12549]
[1731516685412,5.0494287,217.2,216.98,10.3558]
[1731516685413,0.4453287,217.2,216.98,10.3558]
[1731516685721,22.39879466,217.13,216.98,10.3558]
[1731516686091,22.39879466,217.09,216.98,10.3558]
[1731516686292,22.39879466,217.07,216.98,10.3558]
[1731516686493,22.39879466,217.05,216.98,10.3558]
[1731516686711,23.776884,217.04,216.98,10.3558]
[1731516687012,20.0,217.01,216.98,10.3558]
[1731516687192,23.776884,217.0,216.98,10.3558]
[1731516687392,23.776884,217.0,216.89,26.3653]
[1731516687393,20.0,216.99,216.9,10.9657]
[1731516687710,23.776884,216.98,216.9,10.9657]
[1731516688314,20.0,216.99,216.9,10.9657]
[1731516688518,20.0,216.97,216.9,10.9657]
[1731516688816,23.776884,216.96,216.9,10.9657]
[1731516689313,5.78402381,217.04,216.9,10.9657]
[1731516689505,23.776884,217.02,216.9,10.9657]
[1731516689694,23.776884,217.0,216.9,10.9657]
[1731516689895,20.0,216.99,216.9,10.9657]
[1731516690111,23.776884,216.98,216.9,10.9657]
[1731516690812,23.776884,216.99,216.9,10.9657]
[1731516691200,23.776884,216.97,216.9,10.9657]
[1731516691393,20.0,216.96,216.9,10.9657]
[1731516691715,23.776884,216.95,216.9,10.9657]
[1731516692091,23.776884,216.93,216.9,10.9657]
[1731516692818,20.0,216.97,216.9,10.9657]
[1731516693115,23.776884,216.94,216.9,10.9657]
[1731516693815,7.322168,216.94,216.9,10.9657]
[1731516693998,36.39664209,217.0,216.9,10.9657]
[1731516694709,36.39664209,216.98,216.9,10.9657]
[1731516695114,36.39664209,216.96,216.84,28.026]
[1731516695300,36.39664209,216.96,216.83,10.8093]
[1731516695301,20.0,216.89,216.83,10.8093]
[1731516696109,36.39664209,216.88,216.77,28.026]
[1731516696312,20.0,216.85,216.76,11.3397]
[1731516696613,36.39664209,216.8,216.7,26.9579]
[1731516696955,36.39664209,216.8,216.55,0.1]
[1731516696956,36.39664209,216.71,216.59,11.2812]
[1731516697096,20.0,216.7,216.59,11.2812]
[1731516697296,36.39664209,216.69,216.59,11.2812]
[1731516697496,20.0,216.68,216.59,11.2812]
[1731516698024,20.0,216.61,216.46,11.467]
[1731516698328,20.0,216.59,216.46,11.467]
[1731516699018,20.0,216.61,216.46,11.467]
[1731516699329,20.0,216.65,216.46,11.467]
[1731516699612,36.39664209,216.71,216.47,0.12549]
[1731516699917,36.39664209,216.67,216.47,0.12549]
[1731516700096,20.0,216.66,216.46,11.467]
[1731516700303,20.0,216.64,216.46,11.467]
[1731516700601,36.39664209,216.65,216.46,11.467]
[1731516700602,20.0,216.62,216.46,11.467]
[1731516701022,20.0,216.64,216.46,11.467]
[1731516701226,36.39664209,216.61,216.46,11.467]
[1731516701423,20.0,216.58,216.46,11.467]
[1731516702024,20.0,216.6,216.46,11.467]
[1731516702523,20.0,216.56,216.46,11.467]
[1731516703127,36.39664209,216.61,216.46,11.467]
[1731516703128,36.39664209,216.57,216.46,11.467]
[1731516703312,20.0,216.54,216.45,0.4453287]
[1731516703710,20.0,216.56,216.45,0.4453287]
[1731516704337,36.39664209,216.59,216.45,0.4453287]
[1731516704642,20.0,216.58,216.45,0.4453287]
[1731516704816,36.39664209,216.61,216.45,0.4453287]
[1731516705015,36.39664209,216.53,216.45,0.4453287]
[1731516705237,36.39664209,216.51,216.45,0.4453287]
[1731516705441,36.39664209,216.47,216.45,0.4453287]
[1731516705948,36.39664209,216.51,216.45,0.4453287]
[1731516706111,20.0,216.5,216.45,0.4453287]
[1731516706312,20.0,216.48,216.45,0.4453287]
[1731516706726,59.53337705,216.59,216.45,0.4453287]
[1731516706727,20.0,216.52,216.45,0.4453287]
[1731516707622,20.0,216.5,216.45,0.4453287]
[1731516708040,43.902374,216.46,216.45,0.4453287]
[1731516708621,0.32549,216.45,216.31,10.4626]
[1731516708836,0.32549,216.45,216.24,0.4453287]
[1731516708837,20.0,216.34,216.24,0.4453287]
[1731516709030,20.0,216.31,216.24,0.4453287]
[1731516709543,36.39664209,216.45,216.24,0.4453287]
[1731516709746,20.0,216.44,216.24,0.4453287]
[1731516710240,56.39664209,216.44,216.24,0.4453287]
[1731516710422,20.0,216.44,216.24,0.4453287]
[1731516710618,20.0,216.47,216.25,0.12549]
[1731516710814,20.0,216.47,216.25,0.22549]
[1731516711042,20.0,216.49,216.25,24.002374]
[1731516711248,20.0,216.47,216.25,0.12549]
[1731516711543,20.0,216.47,216.25,23.902374]
[1731516712419,20.0,216.43,216.24,0.4453287]
[1731516712743,20.0,216.37,216.24,0.4453287]
[1731516713126,20.0,216.33,216.24,0.4453287]
[1731516713850,36.39664209,216.35,216.24,0.4453287]
[1731516714048,20.0,216.36,216.24,0.4453287]
[1731516714541,24.6216,216.38,216.24,0.4453287]
[1731516715152,20.0,216.38,216.24,0.4453287]
[1731516715544,20.0,216.36,216.24,0.4453287]
[1731516715724,43.776884,216.34,216.24,0.4453287]
[1731516715925,0.12549,216.33,216.24,0.4453287]
[1731516716227,43.902374,216.3,216.24,0.4453287]
[1731516716428,43.902374,216.3,216.04,11.2363]
[1731516716429,36.39664209,216.26,216.04,11.2363]
[1731516716644,36.39664209,216.23,216.02,0.4453287]
[1731516716820,20.0,216.3,216.02,0.5453287]
[1731516717023,23.776884,216.27,216.02,0.5453287]
[1731516717247,36.39664209,216.26,216.02,0.5453287]
[1731516717453,56.39664209,216.3,216.05,0.1]
[1731516717624,41.01904209,216.34,216.1,10.7271]
[1731516717819,36.39664209,216.34,216.11,0.12549]
[1731516718125,36.39664209,216.3,216.1,10.7271]
[1731516718328,20.0,216.29,216.1,10.7271]
[1731516718530,5.0,216.29,216.1,10.7271]
[1731516718727,36.39664209,216.3,216.1,10.7271]
[1731516718931,36.39664209,216.28,216.1,10.7271]
[1731516720349,36.39664209,216.24,216.1,10.7271]
[1731516720537,36.39664209,216.26,216.1,10.7271]
[1731516720743,20.0,216.23,216.1,10.7271]
[1731516721423,20.0,216.25,216.1,10.7271]
[1731516721643,36.39664209,216.28,216.1,10.7271]
[1731516721836,20.0,216.27,216.1,10.7271]
[1731516722223,36.39664209,216.21,216.1,10.7271]
[1731516722429,36.39664209,216.19,216.1,10.7271]
[1731516722635,20.0,216.18,216.1,10.7271]
[1731516723942,24.6258,216.18,216.1,10.7271]
[1731516724142,20.0,216.18,216.1,10.7271]
[1731516724346,20.0,216.2,216.1,10.7271]
[1731516724837,20.0,216.24,216.1,10.7271]
[1731516725024,43.776884,216.22,216.1,10.7271]
[1731516725230,36.39664209,216.17,216.1,10.7271]
[1731516725444,20.0,216.16,216.1,10.7271]
[1731516725838,20.0,216.2,216.1,10.7271]
[1731516726157,42.01700046,216.25,216.1,10.7271]
[1731516726538,46.64130046,216.25,216.1,10.7271]
[1731516726856,0.12549,216.24,216.1,10.7271]
[1731516727066,36.39664209,216.23,216.1,10.7271]
[1731516727349,43.776884,216.22,216.1,10.7271]
[1731516727554,48.401884,216.22,216.1,10.7271]
[1731516727935,20.0,216.22,216.1,10.7271]
[1731516728136,46.64140046,216.25,216.1,10.7271]
[1731516728330,0.12549,216.24,216.1,10.7271]
[1731516728543,36.39664209,216.23,216.1,10.7271]
[1731516729337,5.62035837,216.25,216.1,10.7271]
[1731516729531,5.62035837,216.25,216.02,0.5453287]
[1731516729532,36.39664209,216.19,216.02,0.4453287]
[1731516729752,36.39664209,216.13,216.02,0.4453287]
[1731516730553,20.0,216.12,216.02,0.4453287]
[1731516730951,20.0,216.15,216.02,0.4453287]
[1731516731156,20.0,216.17,216.02,0.4453287]
[1731516731535,36.39664209,216.19,216.02,0.4453287]
[1731516731740,20.0,216.18,216.02,0.4453287]
[1731516732237,20.0,216.16,216.02,0.4453287]
[1731516732435,20.0,216.14,216.02,0.4453287]
[1731516732631,20.0,216.1,216.02,0.4453287]
[1731516733436,20.0,216.06,216.02,0.4453287]
[1731516733763,20.0,216.06,216.03,36.71039303]
[1731516734048,20.0,216.09,216.05,36.71039303]
[1731516734359,20.0,216.09,216.03,36.71039303]
[1731516734657,36.71039303,216.11,216.03,36.71039303]
[1731516734658,20.0,216.1,216.03,36.71039303]
[1731516734844,20.0,216.1,216.05,36.71039303]
[1731516735052,20.0,216.12,216.05,36.71039303]
[1731516735236,20.0,216.14,216.05,36.71039303]
[1731516735430,20.0,216.16,216.07,36.71039303]
[1731516735665,36.71039303,216.19,216.11,36.71039303]
[1731516736352,16.31967914,216.2,216.13,36.71039303]
[1731516736555,41.33509303,216.23,216.13,36.71039303]
[1731516736733,18.498505,216.23,216.18,36.71039303]
[1731516737129,36.71039303,216.27,216.2,36.71039303]
[1731516737336,26.0696,216.29,216.14,36.71039303]
[1731516737337,36.71039303,216.23,216.14,36.71039303]
[1731516737865,36.71039303,216.23,216.16,36.71039303]
[1731516738034,36.71039303,216.18,216.08,36.71039303]
[1731516738235,7.17119597,216.22,216.08,36.71039303]
[1731516738236,36.71039303,216.16,216.08,36.71039303]
[1731516738434,36.71039303,216.16,216.06,10.6677]
[1731516738435,36.71039303,216.14,216.06,47.37809303]
[1731516738960,24.627,216.13,216.06,47.37809303]
[1731516739140,20.0,216.11,216.06,10.6677]
[1731516739665,20.0,216.15,216.08,36.71039303]
[1731516740047,20.0,216.17,216.12,36.71039303]
[1731516740250,23.776884,216.19,216.12,36.71039303]
[1731516740550,36.71039303,216.18,216.09,36.71039303]
[1731516740851,36.71039303,216.18,216.11,36.71039303]
[1731516741055,23.776884,216.19,216.11,36.71039303]
[1731516741438,23.776884,216.2,216.13,36.71039303]
[1731516741633,20.0,216.19,216.13,36.71039303]
[1731516741860,20.0,216.2,216.13,36.71039303]
[1731516742244,20.0,216.21,216.13,36.71039303]
[1731516743036,24.6252,216.21,216.13,36.71039303]
[1731516743243,36.71039303,216.16,216.07,36.71039303]
[1731516743557,20.0,216.15,216.11,36.71039303]
[1731516744044,20.0,216.17,216.11,36.71039303]
[1731516744240,20.0,216.19,216.11,36.71039303]
[1731516745158,20.0,216.19,216.13,36.71039303]
[1731516745463,36.71039303,216.28,216.17,36.71039303]
[1731516745757,36.71039303,216.24,216.15,36.71039303]
[1731516745959,23.45641492,216.47,216.23,47.85589303]
[1731516746265,5.80157609,216.44,216.35,36.71039303]
[1731516746557,5.80157609,216.44,216.27,36.71039303]
[1731516746558,36.71039303,216.42,216.33,36.71039303]
[1731516747172,36.71039303,216.42,216.23,11.1455]
[1731516747173,36.71039303,216.4,216.31,36.71039303]
[1731516747341,36.71039303,216.4,216.23,11.1455]
[1731516747342,36.71039303,216.36,216.25,36.71039303]
[1731516747546,36.71039303,216.32,216.23,47.85589303]
[1731516747859,36.81039303,216.37,216.24,36.71039303]
[1731516747860,36.71039303,216.33,216.24,36.71039303]
[1731516748454,24.6227,216.32,216.24,36.71039303]
[1731516748646,20.0,216.3,216.24,36.71039303]
[1731516749168,20.0,216.37,216.28,36.71039303]
[1731516749458,20.12549,216.34,216.26,36.71039303]
[1731516749665,20.0,216.32,216.24,36.71039303]
[1731516750242,36.71039303,216.29,216.2,36.71039303]
[1731516750443,20.0,216.26,216.2,36.71039303]
[1731516751664,20.0,216.24,216.18,36.71039303]
[1731516751843,20.0,216.22,216.14,36.71039303]
[1731516752049,20.0,216.22,216.18,36.71039303]
[1731516752264,20.0,216.22,216.2,36.71039303]
[1731516752443,60.48727703,216.25,216.18,36.71039303]
[1731516752645,20.0,216.22,216.18,36.71039303]
[1731516752844,20.0,216.24,216.2,36.71039303]
[1731516753065,20.0,216.24,216.22,36.71039303]
[1731516753287,20.0,216.28,216.22,36.71039303]
[1731516753455,23.776884,216.25,216.22,36.71039303]
[1731516753657,20.0,216.24,216.22,36.71039303]
[1731516753988,4.6227,216.33,216.23,36.71039303]
[1731516754292,0.12549,216.33,216.26,36.71039303]
[1731516754857,4.74819,216.33,216.26,36.71039303]
[1731516755055,70.67819713,216.38,216.3,36.71039303]
[1731516755255,7.16771782,216.44,216.36,36.71039303]
[1731516755470,7.16771782,216.44,216.4,36.71039303]
[1731516755670,12.88155664,216.44,216.4,36.71039303]
[1731516755879,10.17686059,216.46,216.4,36.71039303]
[1731516756468,10.17686059,216.46,216.42,36.71039303]
[1731516756776,7.13678491,216.48,216.42,36.71039303]
[1731516756964,36.71039303,216.55,216.47,36.71039303]
[1731516757160,7.14234297,216.5,216.43,36.71039303]
[1731516757375,7.14234297,216.5,216.27,10.8335]
[1731516757376,36.71039303,216.49,216.41,36.71039303]
[1731516757576,43.85301016,216.51,216.43,36.71039303]
[1731516758173,20.12549,216.5,216.43,36.71039303]
[1731516758356,20.0,216.5,216.43,36.71039303]
[1731516758661,24.6189,216.5,216.45,36.71039303]
[1731516758860,24.6189,216.5,216.43,36.71039303]
[1731516759081,7.14261713,216.51,216.49,36.71039303]
[1731516759263,0.80037585,216.6,216.49,36.71039303]
[1731516759264,26.8819,216.63,216.49,36.71039303]
[1731516759583,0.12549,216.59,216.5,36.71039303]
[1731516759783,0.12549,216.57,216.48,36.71039303]
[1731516759968,4.6167,216.61,216.56,36.71039303]
[1731516760684,4.6167,216.61,216.43,10.9466]
[1731516761063,4.6167,216.61,216.56,36.71039303]
[1731516761766,0.12549,216.6,216.56,36.71039303]
[1731516761977,0.12549,216.58,216.54,36.71039303]
[1731516762179,23.902374,216.58,216.52,36.71039303]
[1731516762669,20.0,216.55,216.54,36.71039303]
[1731516763069,7.14256884,216.65,216.54,36.71039303]
[1731516763275,4.6146,216.7,216.63,36.71039303]
[1731516763470,7.14313771,216.67,216.61,36.71039303]
[1731516763670,7.14313771,216.67,216.63,36.71039303]
[1731516764071,10.16369834,216.73,216.65,36.71039303]
[1731516764278,10.16369834,216.73,216.71,36.71039303]
[1731516764502,17.30508998,216.73,216.67,36.71039303]
[1731516764686,21.91918998,216.73,216.67,36.71039303]
[1731516764985,21.91918998,216.73,216.69,36.71039303]
[1731516765168,17.30508998,216.73,216.69,36.71039303]
[1731516765869,0.4453287,216.77,216.71,36.71039303]
[1731516766069,0.4453287,216.77,216.75,36.71039303]
[1731516767687,0.4453287,216.77,216.76,36.71039303]
[1731516767867,0.4453287,216.77,216.75,36.71039303]
[1731516768069,7.13014072,216.9,216.76,36.71039303]
[1731516768269,4.6096,216.94,216.89,36.71039303]
[1731516768490,7.12877153,216.93,216.89,36.71039303]
[1731516769271,11.73867153,216.93,216.85,36.71039303]
[1731516769478,36.71039303,216.97,216.88,36.71039303]
[1731516769690,7.12852764,216.93,216.86,36.71039303]
[1731516769892,20.0,216.88,216.74,11.518]
[1731516770074,20.0,216.86,216.78,36.71039303]
[1731516770391,36.71039303,216.85,216.76,36.71039303]
[1731516770588,43.776884,216.82,216.74,48.22839303]
[1731516770890,20.0,216.8,216.74,11.518]
[1731516771200,60.48727703,216.79,216.7,36.71039303]
[1731516771376,20.0,216.76,216.68,36.71039303]
[1731516771570,20.0,216.74,216.66,11.3714]
[1731516771775,20.0,216.74,216.66,48.08179303]
[1731516771970,28.389784,216.79,216.6,36.71039303]
[1731516771971,60.48727703,216.69,216.6,36.71039303]
[1731516772196,20.0,216.64,216.59,10.5569]
[1731516772394,20.0,216.64,216.58,36.71039303]
[1731516772598,20.0,216.64,216.56,36.71039303]
[1731516772788,20.0,216.64,216.58,36.71039303]
[1731516773094,17.05509903,216.79,216.62,36.71039303]
[1731516773291,20.0,216.72,216.64,36.71039303]
[1731516773480,20.0,216.7,216.62,36.71039303]
[1731516773678,20.0,216.68,216.6,36.71039303]
[1731516774196,20.0,216.66,216.58,36.71039303]
[1731516774770,36.71039303,216.73,216.64,36.71039303]
[1731516774976,20.0,216.74,216.66,36.71039303]
[1731516775192,20.0,216.72,216.66,36.71039303]
[1731516775394,20.0,216.7,216.64,36.71039303]
[1731516775590,20.0,216.68,216.62,36.71039303]
[1731516775896,20.0,216.66,216.6,36.71039303]
[1731516777100,20.0,216.64,216.58,36.71039303]
[1731516777276,20.0,216.64,216.6,36.71039303]
[1731516777476,20.0,216.64,216.58,36.71039303]
[1731516777676,20.0,216.62,216.56,36.71039303]
[1731516777877,23.776884,216.61,216.56,36.71039303]